Cogmind - Beta 13 @@@ ROGUE MODE // 2024.05.12 @ 23:31:03 Player: Toa of Guts Result: Destroyed by Y-45 Defender with Heavy Assault Rifle Performance ------------- Evolutions (1) 500 Regions Visited (3) 600 Robots Destroyed (38) 190 Value Destroyed (871) 871 Prototype IDs (3) 60 Alien Tech Used (0) 0 Bonus (0) 0 TOTAL SCORE: 2221 Bonus ------- None Cogmind --------- Core Integrity 0/400 Matter 280/300 Energy 264/265 System Corruption 1% Temperature Cool (9) Movement Rolling (135) Ox3 Location -9/Storage Parts ------- > --- POWER (1) -------- Improved Ion Engine > --- PROPULSION (3) --- Light Treads Aluminum Leg Armored Wheel > --- UTILITY (3) ------ Cooling System Large Storage Unit Medium Armor Plating > --- WEAPON (2) ------- Beam Cannon Beam Cannon > --- INVENTORY (15) --- Improved Ion Engine Improved Ion Engine Compact Wheel Improved Heat Sink Seismic Detector Beam Cannon Beam Cannon Beam Cannon Beam Cannon Assault Rifle Heavy Assault Rifle Rocket Launcher Heavy Hammer Peak State ------------ > --- POWER ------------ Improved Ion Engine > --- PROPULSION ------- Aluminum Leg Wheel Armored Wheel > --- UTILITY ---------- Large Storage Unit Transport Network Coupler Light Armor Plating > --- WEAPON ----------- Beam Rifle Heavy Assault Rifle > --- INVENTORY -------- Improved Ion Engine Improved Ion Engine Light Treads Compact Wheel Improved Heat Sink Cooling System Seismic Detector Small Laser Beam Cannon Assault Rifle Rocket Launcher Hammer Heavy Hammer [Rating: 15] Favorites ----------- Power Light Ion Engine Engine Light Ion Engine Propulsion Aluminum Leg Treads Light Treads Leg Aluminum Leg Wheel Armored Wheel Utility Transport Network Coupler Device Cooling System Storage Large Storage Unit Processor Transport Network Coupler Protection Light Armor Plating Weapon Small Laser Energy Gun Small Laser Energy Cannon Beam Cannon Ballistic Gun Assault Rifle Build | -11 -10 -9 -9 ------- Run | Yrd Mat Mat Sto Slots Evolved 2 | . . 2 . Power . | . . . . Propulsion 1 | . . 1 . Utility 1 | . . 1 . Weapon . | . . . . Parts Attached 42 | 7 6 27 2 Power 7 | 1 . 6 . Engine 7 | 1 . 6 . Core . | . . . . Reactor . | . . . . Propulsion 11 | 2 2 5 2 Treads 1 | . . . 1 Leg 8 | 2 2 3 1 Wheel 2 | . . 2 . Hover . | . . . . Flight . | . . . . Utility 15 | 2 3 10 . Device 2 | 1 . 1 . Storage 3 | 1 2 . . Processor 1 | . 1 . . Hackware . | . . . . Protection 9 | . . 9 . Artifact . | . . . . Weapon 9 | 2 1 6 . Energy Gun 3 | 1 . 2 . Energy Cannon 2 | . . 2 . Ballistic Gun 4 | 1 1 2 . Ballistic Cannon . | . . . . Launcher . | . . . . Special Weapon . | . . . . Impact Weapon . | . . . . Slashing Weapon . | . . . . Piercing Weapon . | . . . . Special Melee Weapon . | . . . . Unidentified Prototypes . | . . . . Parts Lost 12 | . . 12 . Power 2 | . . 2 . Propulsion 4 | . . 4 . Utility 5 | . . 5 . Weapon 1 | . . 1 . Highest Loss Streak 4 | . . 4 . To Critical Strikes . | . . . . Average Slot Usage (%) 98 | . 100 97 100 Engine 12 | . 14 10 11 Leg 24 | . 28 22 11 Wheel 5 | . . 9 12 Device 2 | . 2 1 11 Storage 12 | . 14 11 11 Processor 10 | . 11 9 . Protection 5 | . . 10 11 Energy Gun 12 | . 14 11 . Energy Cannon 2 | . . 3 22 Ballistic Gun 9 | . 14 6 . Naked Turns . | . . . . Heaviest Build 42 | 11 26 42 42 Greatest Support 30 | 20 20 30 22 Greatest Overweight (x) 3 | 3 1 1 3 Average Overweight (x) . | . . . 2 Largest Inventory Capacity 15 | 8 15 15 15 Average Capacity 13 | 7 12 15 15 Most Carried 15 | 6 15 15 14 Average Carried 10 | 3 10 11 13 Final Capacity 15 | 8 15 15 15 Final Carried 15 | 6 15 14 13 Class Distribution -------------------- 95% | Mutant 4% | Scavenger-Mutant Dominant Class ---------------- Mutant | -10/Materials Mutant | -9/Materials Mutant | -9/Storage Resources | -11 -10 -9 -9 ----------- Run | Yrd Mat Mat Sto Matter Collected 857 | 234 140 483 . Remotely . | . . . . Salvage Created 1250 | 24 376 850 . Parts 101 | 3 26 72 . Haulers Intercepted 4 | . 2 2 . Recyclers Shooed . | . . . . Parts Field Recycled . | . . . . Retrieved Matter . | . . . . Parts Self-Destructed . | . . . . Prevented . | . . . . Kills | -11 -10 -9 -9 ------- Run | Yrd Mat Mat Sto Combat Hostiles Destroyed 26 | . 5 21 . Guns 26 | . 5 21 . Classes Destroyed 8 | 1 3 4 . Worker 1 | . . 1 . Tunneler 1 | 1 . . . Hauler 4 | . 2 2 . Watcher 6 | . 2 4 . Swarmer 10 | . . 10 . Grunt 9 | . 5 4 . Duelist 1 | . . 1 . Sentry 6 | . . 6 . Best Kill Streak 6 | 1 2 6 . Combat Bots Only 6 | . 2 6 . Max Kills in Single Turn 1 | 1 1 1 . Gunslinging . | . . . . Exploded . | . . . . Melee . | . . . . Uniques/NPCs Destroyed . | . . . . Combat | -11 -10 -9 -9 -------- Run | Yrd Mat Mat Sto Hostile Shots Fired 230 | . 35 191 4 Missed 47 | . 10 36 1 Damage Taken 2149 | . 310 1794 45 Core 505 | . 103 387 15 Absorbed by Shields . | . . . . Core Remaining (%) 79 | 100 58 . . Volleys Fired 147 | 3 39 105 . Largest 2 | 2 2 2 . Hottest 120 | 60 60 120 . Shots Fired 278 | 6 78 194 . Gun 258 | 6 78 174 . Cannon 20 | . . 20 . Launcher . | . . . . Special . | . . . . Kinetic 123 | 3 39 81 . Thermal 155 | 3 39 113 . Explosive . | . . . . Electromagnetic . | . . . . Robot Hit Streak 21 | 2 11 21 . Robot Miss Streak 5 | 1 3 5 . Penetration Max . | . . . . Secondary Targets 8 | . 1 7 . Max Gunslinging Chain 1 | . 1 1 . Shots Hit Robots 184 | 4 54 126 . Core Hits 61 | 1 20 40 . Critical Kills 1 | . 1 . . Critical Parts Destroyed . | . . . . Critical Strikes 3 | . 1 2 . Burn 2 | . . 2 . Destroy 1 | . 1 . . Melee Attacks . | . . . . Impact . | . . . . Slashing . | . . . . Piercing . | . . . . Sneak Attacks . | . . . . Combat Hostiles . | . . . . Follow-up Attacks . | . . . . Damage Inflicted 2221 | 37 515 1669 . Guns 1959 | 37 515 1407 . Cannons 262 | . . 262 . Explosions . | . . . . Melee . | . . . . Ramming . | . . . . Kinetic 944 | 14 241 689 . Thermal 1277 | 23 274 980 . Explosive . | . . . . Electromagnetic . | . . . . Impact . | . . . . Slashing . | . . . . Piercing . | . . . . Highest Corruption 1 | . . 1 1 Average Corruption 1 | . . 1 1 Corruption Purged . | . . . . Corruption Blocked . | . . . . Effects 8 | . . 8 . Matter Fused 3 | . . 3 . Heat Flow Errors 1 | . . 1 . Parts Fused 1 | . . 1 . Data Loss (minor) 2 | . . 2 . Misfires 1 | . . 1 . Overload Shots . | . . . . Overflow Damage 13 | . . 13 . Projectiles 13 | . . 13 . Explosions . | . . . . Melee . | . . . . Knockbacks . | . . . . Impact . | . . . . Kinetic . | . . . . Secondary . | . . . . Self-Inflicted Damage . | . . . . Shots . | . . . . Rammed . | . . . . Targets Rammed . | . . . . Kicked . | . . . . Crushed . | . . . . Highest Temperature 423 | 20 132 423 . Average Temperature 79 | 15 40 95 . Received Heat Transfer 438 | . 174 246 18 Effects 3 | . . 3 . Interference 3 | . . 3 . Siege Activations . | . . . . Robots Corrupted . | . . . . Combat Hostiles . | . . . . Parts Fried . | . . . . Impact Corruptions . | . . . . Robots Melted . | . . . . Combat Hostiles . | . . . . Parts Melted 5 | . 1 4 . Heat Transferred 3103 | 50 625 2428 . Parts Sabotaged . | . . . . Parts Stolen . | . . . . Parts Stripped . | . . . . Power Chain Reactions . | . . . . Alert | -11 -10 -9 -9 ------- Run | Yrd Mat Mat Sto Peak Influence 348 | 5 167 348 70 Initial 70 | . 3 . 70 Average 101 | 1 37 174 18 Maximum Alert Level 1 | . . 1 . Low Security (%) 82 | 100 100 63 100 Level 1 17 | . . 36 . Level 2 . | . . . . Level 3 . | . . . . Level 4 . | . . . . Level 5 . | . . . . High Security . | . . . . Max Security . | . . . . Squads Dispatched 1 | . 1 . . Investigation . | . . . . Extermination . | . . . . Reinforcement 1 | . 1 . . Assault . | . . . . Garrison . | . . . . Intercept . | . . . . Searches Triggered . | . . . . Construction Impeded . | . . . . Haulers Reinforced . | . . . . Active Scanning Responses . | . . . . Cargo Convoy Interrupts . | . . . . Stealth | -11 -10 -9 -9 --------- Run | Yrd Mat Mat Sto Distress Signals 7 | . 3 3 1 Communications Jammed . | . . . . Distress Signals . | . . . . Times Spotted 53 | . 14 36 3 Peak Tracking Total 7 | . 3 7 3 Tactical Retreats 3 | . 1 2 . Traps | -11 -10 -9 -9 ------- Run | Yrd Mat Mat Sto Traps Triggered . | . . . . Indirectly . | . . . . Trap Hack Attempts . | . . . . Triggered . | . . . . Disarmed . | . . . . Reprogrammed . | . . . . Reused . | . . . . Traps Extracted . | . . . . Installed . | . . . . Triggered . | . . . . Machines | -11 -10 -9 -9 ---------- Run | Yrd Mat Mat Sto Machines Disabled 1 | . . 1 . Max in Single Turn 1 | . . 1 . Machines Repaired . | . . . . Machines Dismantled . | . . . . Machines Sabotaged . | . . . . Overloaded Fab Kills . | . . . . Hacking | -11 -10 -9 -9 --------- Run | Yrd Mat Mat Sto Machines Accessed 10 | . 4 5 1 Terminals 10 | . 4 5 1 Fabricators . | . . . . Repair Stations . | . . . . Recycling Units . | . . . . Scanalyzers . | . . . . Garrison Access . | . . . . Total Hacks 32 | . 11 19 2 Successful 14 | . 3 10 1 Failed 18 | . 8 9 1 Catastrophic 2 | . 1 1 . Database Lockouts . | . . . . Manual 12 | . 6 6 . Terminals 32 | . 11 19 2 Fabricators . | . . . . Repair Stations . | . . . . Recycling Units . | . . . . Scanalyzers . | . . . . Garrison Access . | . . . . Terminal Hacks 11 | . 3 7 1 Prototype ID Bank 2 | . 1 1 . Alert Level 3 | . 1 2 . Unreport Threat 2 | . . 1 1 Locate Traps 2 | . 1 1 . Hauler Manifests 1 | . . 1 . Registered Components 1 | . . 1 . Fabricator Hacks . | . . . . Repair Station Hacks . | . . . . Recycling Unit Hacks . | . . . . Scanalyzer . | . . . . Garrison Access Hacks . | . . . . Unauthorized Hacks 3 | . . 3 . Terminals 3 | . . 3 . Botnet 2 | . . 2 . Disrupt 1 | . . 1 . Fabricators . | . . . . Repair Stations . | . . . . Recycling Units . | . . . . Scanalyzers . | . . . . Garrison Access . | . . . . Data Cores Recovered . | . . . . Used . | . . . . Hacking Detections 9 | . 3 5 1 Full Trace Events 1 | . . 1 . Feedback Events 1 | . . 1 . Corruption 1 | . . 1 . Feedback Blocked . | . . . . Robot Schematics Acquired . | . . . . Robots Built . | . . . . Authchips . | . . . . Time . | . . . . Total Robot Build Rating . | . . . . Part Schematics Acquired . | . . . . Parts Built . | . . . . Authchips . | . . . . Time . | . . . . Total Part Build Rating . | . . . . Parts Repaired . | . . . . Time . | . . . . Parts Recycled . | . . . . Recycled Matter . | . . . . Retrieved Matter . | . . . . Retrieved Components . | . . . . Parts Scanalyzed . | . . . . Part Schematics Acquired . | . . . . Parts Damaged . | . . . . Bothacking | -11 -10 -9 -9 ------------ Run | Yrd Mat Mat Sto Used RIF Installer . | . . . . Robots Hacked . | . . . . Non-combat . | . . . . Combat . | . . . . Robot Hacks Applied . | . . . . Relay Couplers Released . | . . . . Fabnet Peak Effective % . | . . . . Robots Rewired . | . . . . Allies Hacked . | . . . . Hacks Repelled . | . . . . Allies | -11 -10 -9 -9 -------- Run | Yrd Mat Mat Sto Total Allies . | . . . . Largest Group . | . . . . Highest-Rated Group . | . . . . Highest-Rated Ally . | . . . . Total Orders . | . . . . Ally Attacks . | . . . . Total Damage . | . . . . Kills . | . . . . Allies Corrupted . | . . . . Allies Melted . | . . . . Intel | -11 -10 -9 -9 ------- Run | Yrd Mat Mat Sto Robot Analysis Total . | . . . . Derelict Logs Recovered . | . . . . Drone Launches . | . . . . Drone Recoveries . | . . . . Exploration | -11 -10 -9 -9 ------------- Run | Yrd Mat Mat Sto Turns Passed 1907 | 89 812 930 76 Spaces Moved 933 | 53 383 440 57 Core 13 | 13 . . . Treads . | . . . . Legs 629 | 40 383 206 . Wheels 291 | . . 234 57 Hover . | . . . . Flight . | . . . . Fastest Speed 50 | 50 120 100 100 Average Speed 137 | 121 158 122 128 Slowest Speed 200 | 200 190 190 135 Overloaded Moves . | . . . . Propulsion Burnouts . | . . . . Robots Hopped . | . . . . Cave-ins Triggered . | . . . . Exploration Rate (%) 35 | 4 63 53 20 Regions Visited 3 Branch Regions 1 Pre-discovered Areas . | . . . . Known Exits Taken . | . . . . Unknown Exits Taken 3 | 1 1 1 . Scrap Searched . | . . . . Spaces Dug . | . . . . Terrain Destroyed . | . . . . Melee . | . . . . Projectile . | . . . . AOE . | . . . . Terrain Rammed . | . . . . Walls Destroyed . | . . . . Machines Disabled . | . . . . Actions | -11 -10 -9 -9 --------- Run | Yrd Mat Mat Sto Total 1280 | 68 519 634 59 Wait 115 | . 71 44 . Move 930 | 52 382 439 57 Hop . | . . . . Pick Up 29 | 6 13 10 . Fast Attach 13 | 7 . 6 . Attach 12 | . . 12 . Detach 2 | . . 2 . Swap 17 | . 6 9 2 Drop 15 | . 8 7 . Fire 147 | 3 39 105 . Melee . | . . . . Ram . | . . . . Kick . | . . . . Crush . | . . . . Escape Stasis . | . . . . Rewire . | . . . . Trap . | . . . . Miscellaneous . | . . . . Route ------- -11/Scrapyard -10/Materials (discovered 3 exits: *Mat x2 / [*Min]) -9/Materials (discovered 4 exits: [*Min x2] / *Sto x2) -9/Storage History --------- Turn | Location | Event 26 | -11/Scrapyard | Discovered new exit (range 15) 90 | -11/Scrapyard | Entered Materials 140 | -10/Materials | Discovered new exit (range 12) 282 | -10/Materials | Discovered new exit (range 12) 307 | -10/Materials | Build established: Mutant 754 | -10/Materials | Discovered new exit (range 15) 902 | -10/Materials | Entered another Materials area 902 | -9/Materials | Evolved 2 slots: Propulsion x1, Utility x1 904 | -9/Materials | Discovered new exit (range 14) 967 | -9/Materials | Discovered new exit (range 14) 1059 | -9/Materials | Discovered new exit (range 16) 1166 | -9/Materials | Lost 4 parts (1p1n2u) 1409 | -9/Materials | Core integrity fell below 50% 1444 | -9/Materials | Core integrity fell below 20% 1477 | -9/Materials | Lost 4 parts (3n1u) 1478 | -9/Materials | Discovered new exit (range 8) 1832 | -9/Materials | Entered Storage 1908 | -9/Storage | Destroyed by Y-45 Defender with Heavy Assault Rifle Last Messages --------------- 01765_ K-01 Serf collects debris. 01767_ R-06 Scavenger collects Beam Rifle. 01772_ R-06 Scavenger collects Med. Matter Pod. 01779_ Visual Processing Unit melted. 01779_ W-16 Scout destroyed. 01785_ Destroyed Lgt. Ion Engine. 01785_ W-16 Scout destroyed. 01785_ R-06 Scavenger collects Sensor Array. 01796_ K-01 Serf collects debris. 01817_ M-13 Machinist repairs Lgt. Ion Engine. LOCATION=UNKNOWN GOAL=ESCAPE 01842_ Connecting with Terminal... 01842_ Current location identified: Storage >>Alert(Purge) Purged threat record, alert level lowered. 01844_ Discarded Wheel. 01874_ K-01 Serf collects debris. 01875_ W-16 Scout sends out distress signal. 01889_ K-01 Serf collects debris. Map ----- +----------------------------------------------------+ | ????????????????????????????????????? | | ?????????????????#######????????????? | | ?????????????????#"""""#????????????? | | ???????###########""T""######???????? | | ???????# #???????? | | ???????# #???????? | | ???????# ####????? | | ???????######+########### """#????? | | ??????????? ???????????# R"#????? | | ?????????# "????????????# """#????? | | ?????????#??????????????# ####????? | | ????????????????????????# #???????? | | ????????????????????????# #???????? | | ????????????????????????# #???????? | | ????????????????????????# #???????? | | ????????????????????????# #???????? | | ????????????????????????# #???????? | | ????????########????##### #???????? | | ???# """"" #????? # #???????? | | ??"" """"" #?????? # #???????? | | ??"Y """"" #??????" # #???????? | | ???? #??????" # #???????? | | ?????? # ?????" + ^#???????? | | ???????? # """""" # #???????? | | ?????????? # # ?????? | | ??????????##@#?# # ??? | | ????# ##### #?# # ? | | ????# #?##+##+#### ######### | | ????# ##### #??# #??# #???????? | | ??????????# #??# #??# #???????? | | ??????????# #### #### #???????? | | ??????????# #???????? | | ??????????# ####### +???????? | | ??????????# ######?????? #???????? | | ??????????# #??????????? #???????? | | ??????????# #??????????? #???????? | | ??????????# #??????????? ????????? | | ??????????# Y#??????????????????????? | | ??????????/ #??????????????????????? | | ??????????# #??????????????????????? | | ??????????# #??????????????????????? | | ?????????? ???????????????????????? | | ?????????? ???????????????????????? | | ?????????? ???????????????????????? | | ?????????? ???????????????????????? | | ?????????## ???????????????????????? | | ??????????? ???????????????????????? | | ??????????? ???????????????????????? | | ????????????????????????????????????? | | ????????????????????????????????????? | +----------------------------------------------------+ Best States ------------- Heat Dissipation 50 Energy Generation 12 Energy Capacity 265 Matter Stores 300 Matter Capacity 300 Sight Range 16 Terrain Scan Density 10 Armor Coverage 225 Evasion (%) 55 Item Schematics ----------------- None Robot Schematics ------------------ None Fabricated ------------ Nothing Alien Tech Used ----------------- None Achievements -------------- None Challenges ------------ None Game ------ Seed SiegeBehemothGravjet Manual? 0 Play Time 00:19:23 Cumulative 142.4 hours Start 2024.05.12 @ 23:12:11 End 2024.05.12 @ 23:31:03 Sessions 1 Manual Loads 0 Difficulty Rogue Special Mode None Game No. 92 Rogue 92 Adventurer 0 Explorer 0 Win Type - Total 4 Types 4/0/0/0/0/0/0/0/0 Lore% 46 Gallery% 55 Achievement% 39 Wizard Run 0 Options --------- Layout 0 ASCII 0 Keyboard 0 Movement Mouse Keybinds 0 Fullscreen 1 Font 24/X11 Map View 76x50 Zoom Use 0% Tactical HUD 1 Map Filters NONE Filters NONE Steam 1 RUN: 9e71a56c-3aec-4122-aef6-a7c16a4554fe